[Event "Titled Tuesday Blitz August 22 Early 2023"]
[White "Polaczek, Richard"]
[Black "Feliz Dotel, Dewar Bienvenido"]
[WhiteFideId "200026"]
[BlackFideId "6402801"]
[WhiteElo "2385"]
[BlackElo "2162"]
[Result "1-0"]
[Round "11"]
[TimeControl "180+1"]
[Date "2023.08.22"]
[WhiteClock "0:00:20"]
[BlackClock "0:00:00"]
[Board "130"]

1. d4 {[%clk 0:03:00]}  d5 {[%clk 0:02:48]} 2. c4 {[%clk 0:02:59]}  e6 {[%clk 0:02:48]} 3. Nc3 {[%clk 0:02:58]}  c5 {[%clk 0:02:49]} 4. cxd5 {[%clk 0:02:56]}  exd5 {[%clk 0:02:50]} 5. Nf3 {[%clk 0:02:55]}  Nc6 {[%clk 0:02:50]} 6. g3 {[%clk 0:02:55]}  Nf6 {[%clk 0:02:50]} 7. Bg2 {[%clk 0:02:55]}  Be7 {[%clk 0:02:51]} 8. O-O {[%clk 0:02:55]}  O-O {[%clk 0:02:51]} 9. dxc5 {[%clk 0:02:53]}  Bxc5 {[%clk 0:02:52]} 10. a3 {[%clk 0:02:53]}  a6 {[%clk 0:02:47]} 11. b4 {[%clk 0:02:52]}  Ba7 {[%clk 0:02:47]} 12. Bb2 {[%clk 0:02:51]}  Be6 {[%clk 0:02:47]} 13. Rc1 {[%clk 0:02:50]}  h6 {[%clk 0:02:45]} 14. Na4 {[%clk 0:02:49]}  Rc8 {[%clk 0:02:37]} 15. Nc5 {[%clk 0:02:47]}  Bxc5 {[%clk 0:02:38]} 16. Rxc5 {[%clk 0:02:46]}  Ne4 {[%clk 0:02:24]} 17. Rc1 {[%clk 0:02:45]}  Ne7 {[%clk 0:02:11]} 18. Rxc8 {[%clk 0:02:34]}  Qxc8 {[%clk 0:02:11]} 19. Nd4 {[%clk 0:02:32]}  Bh3 {[%clk 0:02:06]} 20. Qd3 {[%clk 0:02:09]}  Bxg2 {[%clk 0:02:05]} 21. Kxg2 {[%clk 0:02:09]}  Nc6 {[%clk 0:01:59]} 22. Nxc6 {[%clk 0:01:59]}  Qxc6 {[%clk 0:01:57]} 23. Rc1 {[%clk 0:01:58]}  Qd7 {[%clk 0:01:50]} 24. Qd4 {[%clk 0:01:56]}  Nf6 {[%clk 0:01:50]} 25. Qb6 {[%clk 0:01:42]}  Ne4 {[%clk 0:01:08]} 26. Qd4 {[%clk 0:01:33]}  Nf6 {[%clk 0:01:08]} 27. Qf4 {[%clk 0:01:17]}  Ne4 {[%clk 0:00:59]} 28. Rc7 {[%clk 0:01:13]}  Qe6 {[%clk 0:00:51]} 29. Rxb7 {[%clk 0:01:11]}  Rc8 {[%clk 0:00:50]} 30. Rb8 {[%clk 0:01:10]}  Rxb8 {[%clk 0:00:42]} 31. Qxb8+ {[%clk 0:01:11]}  Kh7 {[%clk 0:00:42]} 32. Qe5 {[%clk 0:01:07]}  Qxe5 {[%clk 0:00:37]} 33. Bxe5 {[%clk 0:01:05]}  Nd2 {[%clk 0:00:31]} 34. a4 {[%clk 0:00:55]}  f6 {[%clk 0:00:27]} 35. Bc3 {[%clk 0:00:46]}  Ne4 {[%clk 0:00:27]} 36. Bd4 {[%clk 0:00:46]}  Kg8 {[%clk 0:00:23]} 37. b5 {[%clk 0:00:44]}  axb5 {[%clk 0:00:23]} 38. a5 {[%clk 0:00:41]}  Nd6 {[%clk 0:00:06]} 39. a6 {[%clk 0:00:40]}  Nc8 {[%clk 0:00:06]} 40. a7 {[%clk 0:00:40]}  Nxa7 {[%clk 0:00:06]} 41. Bxa7 {[%clk 0:00:40]}  Kf7 {[%clk 0:00:06]} 42. Bc5 {[%clk 0:00:38]}  Ke6 {[%clk 0:00:07]} 43. Kf3 {[%clk 0:00:37]}  f5 {[%clk 0:00:06]} 44. h4 {[%clk 0:00:35]}  g5 {[%clk 0:00:07]} 45. h5 {[%clk 0:00:34]}  Ke5 {[%clk 0:00:05]} 46. e3 {[%clk 0:00:31]}  g4+ {[%clk 0:00:04]} 47. Ke2 {[%clk 0:00:30]}  Ke4 {[%clk 0:00:04]} 48. Bf8 {[%clk 0:00:28]}  d4 {[%clk 0:00:02]} 49. exd4 {[%clk 0:00:27]}  Kxd4 {[%clk 0:00:02]} 50. Bxh6 {[%clk 0:00:26]}  Ke4 {[%clk 0:00:02]} 51. Bg7 {[%clk 0:00:24]}  b4 {[%clk 0:00:02]} 52. h6 {[%clk 0:00:24]}  b3 {[%clk 0:00:02]} 53. h7 {[%clk 0:00:23]}  f4 {[%clk 0:00:00]} 54. h8=Q {[%clk 0:00:20]} 1-0


[Site "https://www.chess.com"]

[Event "Titled Tuesday Blitz August 22 Early 2023"]
[White "Prudnykova, Olga"]
[Black "Johnson, Ben"]
[WhiteFideId "14121093"]
[BlackFideId "2010917"]
[WhiteElo "2385"]
[BlackElo "2149"]
[Result "1-0"]
[Round "11"]
[TimeControl "180+1"]
[Date "2023.08.22"]
[WhiteClock "0:00:07"]
[BlackClock "0:00:03"]
[Board "131"]

1. e4 {[%clk 0:02:58]}  c5 {[%clk 0:03:00]} 2. Nf3 {[%clk 0:02:57]}  g6 {[%clk 0:03:00]} 3. Nc3 {[%clk 0:02:57]}  Bg7 {[%clk 0:02:59]} 4. d4 {[%clk 0:02:57]}  cxd4 {[%clk 0:02:59]} 5. Nxd4 {[%clk 0:02:56]}  Nc6 {[%clk 0:02:58]} 6. Nb3 {[%clk 0:02:56]}  Nf6 {[%clk 0:02:55]} 7. Be2 {[%clk 0:02:55]}  O-O {[%clk 0:02:53]} 8. O-O {[%clk 0:02:56]}  a5 {[%clk 0:02:48]} 9. a4 {[%clk 0:02:55]}  d6 {[%clk 0:02:48]} 10. Re1 {[%clk 0:02:54]}  Bd7 {[%clk 0:02:47]} 11. Bf1 {[%clk 0:02:53]}  Rc8 {[%clk 0:02:44]} 12. h3 {[%clk 0:02:47]}  Ne5 {[%clk 0:02:42]} 13. Nd5 {[%clk 0:02:35]}  Nxd5 {[%clk 0:02:37]} 14. exd5 {[%clk 0:02:34]}  Re8 {[%clk 0:02:26]} 15. c3 {[%clk 0:02:32]}  Nc4 {[%clk 0:02:12]} 16. Ra2 {[%clk 0:01:53]}  Qb6 {[%clk 0:02:01]} 17. Bg5 {[%clk 0:01:27]}  Be5 {[%clk 0:01:44]} 18. Qc2 {[%clk 0:01:06]}  Bf5 {[%clk 0:01:36]} 19. Qd1 {[%clk 0:01:02]}  Kg7 {[%clk 0:01:05]} 20. Bxc4 {[%clk 0:00:29]}  Rxc4 {[%clk 0:01:05]} 21. Be3 {[%clk 0:00:27]}  Qa6 {[%clk 0:00:55]} 22. Nd2 {[%clk 0:00:23]}  Rc7 {[%clk 0:00:53]} 23. Nf3 {[%clk 0:00:23]}  Bf6 {[%clk 0:00:51]} 24. Bd4 {[%clk 0:00:22]}  Qc4 {[%clk 0:00:47]} 25. Ra1 {[%clk 0:00:20]}  Rec8 {[%clk 0:00:40]} 26. Bb6 {[%clk 0:00:19]}  Be4 {[%clk 0:00:33]} 27. Nd2 {[%clk 0:00:17]}  Qxd5 {[%clk 0:00:14]} 28. Nxe4 {[%clk 0:00:17]}  Qxd1 {[%clk 0:00:12]} 29. Raxd1 {[%clk 0:00:16]}  Rc6 {[%clk 0:00:13]} 30. Bxa5 {[%clk 0:00:15]}  Ra8 {[%clk 0:00:14]} 31. Bb4 {[%clk 0:00:12]}  Rxa4 {[%clk 0:00:12]} 32. Nxf6 {[%clk 0:00:12]}  Kxf6 {[%clk 0:00:12]} 33. Ra1 {[%clk 0:00:10]}  Rxa1 {[%clk 0:00:10]} 34. Rxa1 {[%clk 0:00:09]}  Rc4 {[%clk 0:00:11]} 35. Kf1 {[%clk 0:00:09]}  d5 {[%clk 0:00:06]} 36. Ra5 {[%clk 0:00:08]}  e6 {[%clk 0:00:06]} 37. Rc5 {[%clk 0:00:08]}  Re4 {[%clk 0:00:03]} 38. Rb5 {[%clk 0:00:07]}  d4 {[%clk 0:00:03]} 39. cxd4 {[%clk 0:00:06]}  Rxd4 {[%clk 0:00:04]} 40. Bc3 {[%clk 0:00:06]}  e5 {[%clk 0:00:04]} 41. Bxd4 {[%clk 0:00:06]}  exd4 {[%clk 0:00:05]} 42. Rd5 {[%clk 0:00:06]}  b5 {[%clk 0:00:04]} 43. Rxd4 {[%clk 0:00:06]}  Ke5 {[%clk 0:00:05]} 44. Rb4 {[%clk 0:00:07]}  Kd5 {[%clk 0:00:03]} 45. Rxb5+ {[%clk 0:00:07]} 1-0


[Site "https://www.chess.com"]

[Event "Titled Tuesday Blitz August 22 Early 2023"]
[White "Kuchava, Ana"]
[Black "Buscar, Michael"]
[WhiteFideId "13605348"]
[BlackFideId "2603616"]
[WhiteElo "2192"]
[BlackElo "2344"]
[Result "0-1"]
[Round "11"]
[TimeControl "180+1"]
[Date "2023.08.22"]
[WhiteClock "0:00:00"]
[BlackClock "0:00:32"]
[Board "137"]

1. d4 {[%clk 0:03:00]}  Nf6 {[%clk 0:02:56]} 2. Nf3 {[%clk 0:03:00]}  e6 {[%clk 0:02:56]} 3. c4 {[%clk 0:02:58]}  c5 {[%clk 0:02:54]} 4. d5 {[%clk 0:02:58]}  exd5 {[%clk 0:02:54]} 5. cxd5 {[%clk 0:02:59]}  d6 {[%clk 0:02:54]} 6. Nc3 {[%clk 0:02:58]}  g6 {[%clk 0:02:54]} 7. e4 {[%clk 0:02:58]}  Bg7 {[%clk 0:02:54]} 8. Bd3 {[%clk 0:02:59]}  O-O {[%clk 0:02:54]} 9. O-O {[%clk 0:02:57]}  Na6 {[%clk 0:02:52]} 10. h3 {[%clk 0:02:56]}  Re8 {[%clk 0:02:48]} 11. Re1 {[%clk 0:02:51]}  Nc7 {[%clk 0:02:23]} 12. Bf4 {[%clk 0:02:46]}  a6 {[%clk 0:02:22]} 13. a4 {[%clk 0:02:42]}  b6 {[%clk 0:01:50]} 14. Rc1 {[%clk 0:02:37]}  Bb7 {[%clk 0:01:45]} 15. Qd2 {[%clk 0:02:19]}  Qd7 {[%clk 0:01:44]} 16. Bh6 {[%clk 0:02:11]}  Bh8 {[%clk 0:01:39]} 17. Qf4 {[%clk 0:01:56]}  b5 {[%clk 0:01:38]} 18. axb5 {[%clk 0:01:54]}  axb5 {[%clk 0:01:38]} 19. Bg5 {[%clk 0:01:42]}  Nh5 {[%clk 0:01:38]} 20. Qg4 {[%clk 0:01:41]}  Qxg4 {[%clk 0:01:23]} 21. hxg4 {[%clk 0:01:42]}  Nf6 {[%clk 0:01:23]} 22. Nxb5 {[%clk 0:01:36]}  Nxb5 {[%clk 0:01:19]} 23. Bxf6 {[%clk 0:01:35]}  Bxf6 {[%clk 0:01:13]} 24. Bxb5 {[%clk 0:01:34]}  Reb8 {[%clk 0:01:12]} 25. b3 {[%clk 0:00:32]}  Bxd5 {[%clk 0:01:07]} 26. exd5 {[%clk 0:00:33]}  Rxb5 {[%clk 0:01:06]} 27. g5 {[%clk 0:00:29]}  Bb2 {[%clk 0:01:02]} 28. Rb1 {[%clk 0:00:15]}  Rxb3 {[%clk 0:00:53]} 29. Nd2 {[%clk 0:00:10]}  Rb4 {[%clk 0:00:50]} 30. Ne4 {[%clk 0:00:07]}  Be5 {[%clk 0:00:44]} 31. Rbd1 {[%clk 0:00:03]}  Kg7 {[%clk 0:00:39]} 32. Nxc5 {[%clk 0:00:03]}  Bc3 {[%clk 0:00:33]} 33. Nd3 {[%clk 0:00:02]}  Bxe1 {[%clk 0:00:33]} 34. Nxb4 {[%clk 0:00:00]}  Bxb4 {[%clk 0:00:32]} 0-1


[Site "https://www.chess.com"]

[Event "Titled Tuesday Blitz August 22 Early 2023"]
[White "campochess"]
[Black "Sovetbekova, Nurai"]
[BlackFideId "13801910"]
[WhiteElo "2186"]
[BlackElo "2299"]
[Result "1-0"]
[Round "11"]
[TimeControl "180+1"]
[Date "2023.08.22"]
[WhiteClock "0:01:34"]
[BlackClock "0:01:04"]
[Board "139"]

1. e4 {[%clk 0:02:42]}  c5 {[%clk 0:02:59]} 2. c3 {[%clk 0:02:41]}  Nf6 {[%clk 0:02:58]} 3. e5 {[%clk 0:02:41]}  Nd5 {[%clk 0:02:58]} 4. d4 {[%clk 0:02:40]}  cxd4 {[%clk 0:02:57]} 5. Nf3 {[%clk 0:02:38]}  Nc6 {[%clk 0:02:53]} 6. Bb5 {[%clk 0:02:34]}  d6 {[%clk 0:02:44]} 7. Nxd4 {[%clk 0:02:30]}  Bd7 {[%clk 0:02:31]} 8. Bxc6 {[%clk 0:02:27]}  Bxc6 {[%clk 0:02:27]} 9. Nxc6 {[%clk 0:02:26]}  bxc6 {[%clk 0:02:26]} 10. exd6 {[%clk 0:02:26]}  exd6 {[%clk 0:02:20]} 11. O-O {[%clk 0:02:26]}  Be7 {[%clk 0:02:20]} 12. Na3 {[%clk 0:02:25]}  O-O {[%clk 0:02:19]} 13. Nc4 {[%clk 0:02:25]}  Nf6 {[%clk 0:02:13]} 14. Bf4 {[%clk 0:02:23]}  d5 {[%clk 0:02:10]} 15. Ne5 {[%clk 0:02:18]}  Rc8 {[%clk 0:02:09]} 16. Qa4 {[%clk 0:02:16]}  Qb6 {[%clk 0:02:05]} 17. Rfe1 {[%clk 0:02:04]}  Ne4 {[%clk 0:01:59]} 18. Be3 {[%clk 0:02:02]}  Bc5 {[%clk 0:01:56]} 19. Nd7 {[%clk 0:01:59]}  Qb5 {[%clk 0:01:41]} 20. Qxb5 {[%clk 0:01:55]}  cxb5 {[%clk 0:01:40]} 21. Nxf8 {[%clk 0:01:55]}  Bxf8 {[%clk 0:01:38]} 22. f3 {[%clk 0:01:54]}  Nf6 {[%clk 0:01:36]} 23. Bxa7 {[%clk 0:01:52]}  b4 {[%clk 0:01:32]} 24. Bd4 {[%clk 0:01:50]}  bxc3 {[%clk 0:01:29]} 25. bxc3 {[%clk 0:01:50]}  Bc5 {[%clk 0:01:26]} 26. a4 {[%clk 0:01:44]}  h6 {[%clk 0:01:21]} 27. a5 {[%clk 0:01:44]}  Bxd4+ {[%clk 0:01:18]} 28. cxd4 {[%clk 0:01:42]}  Ra8 {[%clk 0:01:19]} 29. a6 {[%clk 0:01:42]}  Ra7 {[%clk 0:01:11]} 30. Ra5 {[%clk 0:01:39]}  Nd7 {[%clk 0:01:09]} 31. Rb1 {[%clk 0:01:35]}  Kh7 {[%clk 0:01:04]} 32. Rb7 {[%clk 0:01:34]} 1-0


[Site "https://www.chess.com"]

[Event "Titled Tuesday Blitz August 22 Early 2023"]
[White "abelmat"]
[Black "Simonovic, Miroslav"]
[BlackFideId "919152"]
[WhiteElo "1945"]
[BlackElo "2272"]
[Result "0-1"]
[Round "11"]
[TimeControl "180+1"]
[Date "2023.08.22"]
[WhiteClock "0:00:00"]
[BlackClock "0:00:46"]
[Board "140"]

1. d4 {[%clk 0:03:00]}  Nf6 {[%clk 0:02:59]} 2. c4 {[%clk 0:03:00]}  c5 {[%clk 0:02:59]} 3. Nf3 {[%clk 0:02:59]}  b6 {[%clk 0:02:59]} 4. Nc3 {[%clk 0:02:57]}  Bb7 {[%clk 0:02:58]} 5. d5 {[%clk 0:02:56]}  d6 {[%clk 0:02:57]} 6. g3 {[%clk 0:02:54]}  e5 {[%clk 0:02:57]} 7. dxe6 {[%clk 0:02:50]}  fxe6 {[%clk 0:02:58]} 8. Bg2 {[%clk 0:02:50]}  Be7 {[%clk 0:02:58]} 9. O-O {[%clk 0:02:48]}  O-O {[%clk 0:02:57]} 10. Qc2 {[%clk 0:02:35]}  d5 {[%clk 0:02:50]} 11. Ng5 {[%clk 0:02:28]}  Qd7 {[%clk 0:02:39]} 12. Rd1 {[%clk 0:02:19]}  h6 {[%clk 0:02:34]} 13. Nh3 {[%clk 0:02:06]}  d4 {[%clk 0:02:28]} 14. Bxb7 {[%clk 0:01:54]}  Qxb7 {[%clk 0:02:29]} 15. Nb1 {[%clk 0:01:50]}  e5 {[%clk 0:02:20]} 16. Qg6 {[%clk 0:01:25]}  Qe4 {[%clk 0:02:17]} 17. Qxe4 {[%clk 0:01:13]}  Nxe4 {[%clk 0:02:18]} 18. Nd2 {[%clk 0:01:11]}  Nd6 {[%clk 0:02:18]} 19. b3 {[%clk 0:00:59]}  Nc6 {[%clk 0:02:17]} 20. Ba3 {[%clk 0:00:41]}  Rf7 {[%clk 0:02:05]} 21. f4 {[%clk 0:00:37]}  e4 {[%clk 0:02:00]} 22. Rac1 {[%clk 0:00:21]}  a5 {[%clk 0:01:58]} 23. Bb2 {[%clk 0:00:19]}  Raf8 {[%clk 0:01:46]} 24. Nf1 {[%clk 0:00:18]}  g5 {[%clk 0:01:41]} 25. fxg5 {[%clk 0:00:16]}  hxg5 {[%clk 0:01:42]} 26. a3 {[%clk 0:00:16]}  e3 {[%clk 0:01:28]} 27. Rd3 {[%clk 0:00:15]}  Ne4 {[%clk 0:01:19]} 28. Nxe3 {[%clk 0:00:13]}  dxe3 {[%clk 0:01:19]} 29. Rxe3 {[%clk 0:00:13]}  Nd6 {[%clk 0:01:06]} 30. Rd1 {[%clk 0:00:12]}  Nf5 {[%clk 0:01:03]} 31. Re6 {[%clk 0:00:10]}  Ncd4 {[%clk 0:00:52]} 32. e3 {[%clk 0:00:09]}  Nxe6 {[%clk 0:00:51]} 33. Rd5 {[%clk 0:00:00]}  Nxe3 {[%clk 0:00:46]} 0-1


[Site "https://www.chess.com"]

[Event "Titled Tuesday Blitz August 22 Early 2023"]
[White "Omariev, Maksim"]
[Black "Sailer, Mike"]
[WhiteFideId "4193423"]
[BlackFideId "2012901"]
[WhiteElo "2435"]
[BlackElo "2228"]
[Result "1-0"]
[Round "11"]
[TimeControl "180+1"]
[Date "2023.08.22"]
[WhiteClock "0:01:20"]
[BlackClock "0:00:00"]
[Board "145"]

1. g4 {[%clk 0:03:00]}  e5 {[%clk 0:02:50]} 2. Bg2 {[%clk 0:02:51]}  Nc6 {[%clk 0:02:48]} 3. h3 {[%clk 0:02:51]}  Bc5 {[%clk 0:02:46]} 4. c4 {[%clk 0:02:51]}  d6 {[%clk 0:02:47]} 5. Nc3 {[%clk 0:02:48]}  a6 {[%clk 0:02:47]} 6. d3 {[%clk 0:02:48]}  Bd7 {[%clk 0:02:47]} 7. Nf3 {[%clk 0:02:49]}  h5 {[%clk 0:02:46]} 8. g5 {[%clk 0:02:48]}  Nge7 {[%clk 0:02:44]} 9. h4 {[%clk 0:02:47]}  Nf5 {[%clk 0:02:43]} 10. Ne4 {[%clk 0:02:46]}  Ba7 {[%clk 0:02:42]} 11. e3 {[%clk 0:02:46]}  Qe7 {[%clk 0:02:41]} 12. Qe2 {[%clk 0:02:46]}  O-O-O {[%clk 0:02:41]} 13. Bd2 {[%clk 0:02:47]}  f6 {[%clk 0:02:36]} 14. O-O-O {[%clk 0:02:46]}  Be6 {[%clk 0:02:33]} 15. Kb1 {[%clk 0:02:46]}  d5 {[%clk 0:02:33]} 16. cxd5 {[%clk 0:02:45]}  Bxd5 {[%clk 0:02:33]} 17. Bh3 {[%clk 0:02:40]}  Be6 {[%clk 0:02:30]} 18. Bc3 {[%clk 0:02:33]}  Kb8 {[%clk 0:02:30]} 19. Rc1 {[%clk 0:02:30]}  Nd6 {[%clk 0:02:17]} 20. Bxe6 {[%clk 0:02:27]}  Qxe6 {[%clk 0:02:18]} 21. gxf6 {[%clk 0:02:28]}  gxf6 {[%clk 0:02:17]} 22. Nfd2 {[%clk 0:02:27]}  Nb5 {[%clk 0:02:09]} 23. Nc4 {[%clk 0:02:19]}  Nxc3+ {[%clk 0:02:07]} 24. Rxc3 {[%clk 0:02:19]}  f5 {[%clk 0:02:01]} 25. Ng5 {[%clk 0:02:18]}  Qd5 {[%clk 0:01:58]} 26. Rhc1 {[%clk 0:02:17]}  e4 {[%clk 0:01:50]} 27. d4 {[%clk 0:02:17]}  f4 {[%clk 0:01:48]} 28. Rb3 {[%clk 0:02:15]}  f3 {[%clk 0:01:42]} 29. Qc2 {[%clk 0:02:15]}  Ka8 {[%clk 0:01:26]} 30. Qxe4 {[%clk 0:02:12]}  Qxe4+ {[%clk 0:01:19]} 31. Nxe4 {[%clk 0:02:12]}  Rdg8 {[%clk 0:01:09]} 32. Ng5 {[%clk 0:02:13]}  Ne7 {[%clk 0:00:55]} 33. Ne5 {[%clk 0:02:12]}  c6 {[%clk 0:00:51]} 34. Nexf3 {[%clk 0:02:08]}  Bb8 {[%clk 0:00:49]} 35. e4 {[%clk 0:02:05]}  Ng6 {[%clk 0:00:48]} 36. Rh1 {[%clk 0:02:04]}  Nf4 {[%clk 0:00:44]} 37. Kc2 {[%clk 0:02:04]}  Rd8 {[%clk 0:00:39]} 38. e5 {[%clk 0:01:55]}  c5 {[%clk 0:00:33]} 39. Nf7 {[%clk 0:01:52]}  cxd4 {[%clk 0:00:29]} 40. Nxh8 {[%clk 0:01:52]}  d3+ {[%clk 0:00:27]} 41. Kd2 {[%clk 0:01:53]}  Rxh8 {[%clk 0:00:27]} 42. Rxd3 {[%clk 0:01:51]}  Nxd3 {[%clk 0:00:26]} 43. Kxd3 {[%clk 0:01:52]}  Rf8 {[%clk 0:00:21]} 44. Ke4 {[%clk 0:01:53]}  Ba7 {[%clk 0:00:20]} 45. Rh2 {[%clk 0:01:52]}  Kb8 {[%clk 0:00:18]} 46. e6 {[%clk 0:01:43]}  Kc7 {[%clk 0:00:18]} 47. Nd4 {[%clk 0:01:37]}  Kd6 {[%clk 0:00:16]} 48. Nf5+ {[%clk 0:01:26]}  Kxe6 {[%clk 0:00:15]} 49. Ng7+ {[%clk 0:01:27]}  Ke7 {[%clk 0:00:10]} 50. Nxh5 {[%clk 0:01:27]}  Rxf2 {[%clk 0:00:10]} 51. Rxf2 {[%clk 0:01:25]}  Bxf2 {[%clk 0:00:10]} 52. Nf4 {[%clk 0:01:26]}  Kf6 {[%clk 0:00:08]} 53. Ng2 {[%clk 0:01:22]}  Bg3 {[%clk 0:00:05]} 54. Kd5 {[%clk 0:01:20]}  Bf2 {[%clk 0:00:00]} 55. a4 {[%clk 0:01:20]} 1-0


[Site "https://www.chess.com"]

[Event "Titled Tuesday Blitz August 22 Early 2023"]
[White "Thiel, Thomas"]
[Black "Gheorghiu, Calin"]
[WhiteFideId "4615964"]
[BlackFideId "1200305"]
[WhiteElo "2228"]
[BlackElo "2363"]
[Result "1-0"]
[Round "11"]
[TimeControl "180+1"]
[Date "2023.08.22"]
[WhiteClock "0:01:36"]
[BlackClock "0:00:00"]
[Board "147"]

1. e4 {[%clk 0:03:00]}  c6 {[%clk 0:02:58]} 2. d4 {[%clk 0:03:00]}  d5 {[%clk 0:02:59]} 3. exd5 {[%clk 0:02:59]}  cxd5 {[%clk 0:02:59]} 4. c4 {[%clk 0:02:57]}  Nf6 {[%clk 0:02:58]} 5. Nc3 {[%clk 0:02:57]}  Nc6 {[%clk 0:02:53]} 6. Bg5 {[%clk 0:02:56]}  e6 {[%clk 0:02:49]} 7. c5 {[%clk 0:02:54]}  Be7 {[%clk 0:02:16]} 8. Bb5 {[%clk 0:02:53]}  O-O {[%clk 0:02:16]} 9. Nge2 {[%clk 0:02:52]}  Bd7 {[%clk 0:01:51]} 10. O-O {[%clk 0:02:50]}  b6 {[%clk 0:01:50]} 11. Bxc6 {[%clk 0:02:47]}  Bxc6 {[%clk 0:01:50]} 12. b4 {[%clk 0:02:47]}  bxc5 {[%clk 0:01:49]} 13. bxc5 {[%clk 0:02:47]}  Qa5 {[%clk 0:01:46]} 14. Qd2 {[%clk 0:02:35]}  Qa3 {[%clk 0:01:32]} 15. Rfb1 {[%clk 0:02:13]}  h6 {[%clk 0:01:19]} 16. Bf4 {[%clk 0:02:12]}  Ne4 {[%clk 0:01:06]} 17. Nxe4 {[%clk 0:02:03]}  dxe4 {[%clk 0:01:06]} 18. Rb3 {[%clk 0:02:00]}  Qa6 {[%clk 0:01:04]} 19. Rg3 {[%clk 0:01:49]}  Kh7 {[%clk 0:00:57]} 20. Bxh6 {[%clk 0:01:38]}  gxh6 {[%clk 0:00:53]} 21. Rh3 {[%clk 0:01:38]}  e3 {[%clk 0:00:25]} 22. Qxe3 {[%clk 0:01:37]}  Kg8 {[%clk 0:00:00]} 23. Qxh6 {[%clk 0:01:36]} 1-0


[Site "https://www.chess.com"]

[Event "Titled Tuesday Blitz August 22 Early 2023"]
[White "Sericano, Claudio"]
[Black "Vaglio Munoz, Jaime"]
[WhiteFideId "800473"]
[BlackFideId "6500145"]
[WhiteElo "2074"]
[BlackElo "2307"]
[Result "1-0"]
[Round "11"]
[TimeControl "180+1"]
[Date "2023.08.22"]
[WhiteClock "0:00:06"]
[BlackClock "0:00:22"]
[Board "149"]

1. e4 {[%clk 0:02:57]}  c5 {[%clk 0:01:52]} 2. Nf3 {[%clk 0:02:57]}  Qa5 {[%clk 0:01:51]} 3. Nc3 {[%clk 0:02:55]}  a6 {[%clk 0:01:51]} 4. d4 {[%clk 0:02:52]}  b5 {[%clk 0:01:50]} 5. Bd2 {[%clk 0:02:50]}  b4 {[%clk 0:01:50]} 6. Nd5 {[%clk 0:02:40]}  e6 {[%clk 0:01:48]} 7. Ne3 {[%clk 0:02:40]}  cxd4 {[%clk 0:01:48]} 8. Nxd4 {[%clk 0:02:40]}  Bb7 {[%clk 0:01:48]} 9. Bd3 {[%clk 0:02:38]}  Nf6 {[%clk 0:01:47]} 10. f3 {[%clk 0:02:37]}  d5 {[%clk 0:01:47]} 11. exd5 {[%clk 0:02:36]}  Nxd5 {[%clk 0:01:47]} 12. Nxd5 {[%clk 0:02:33]}  Qxd5 {[%clk 0:01:48]} 13. Nb3 {[%clk 0:02:29]}  Be7 {[%clk 0:01:46]} 14. Qe2 {[%clk 0:02:22]}  Nc6 {[%clk 0:01:44]} 15. O-O-O {[%clk 0:02:19]}  O-O {[%clk 0:01:34]} 16. Kb1 {[%clk 0:02:11]}  a5 {[%clk 0:01:33]} 17. Bf4 {[%clk 0:02:04]}  g6 {[%clk 0:01:02]} 18. Bxg6 {[%clk 0:01:39]}  hxg6 {[%clk 0:00:59]} 19. Rxd5 {[%clk 0:01:39]}  exd5 {[%clk 0:01:00]} 20. h4 {[%clk 0:01:32]}  Rfe8 {[%clk 0:00:59]} 21. Qd2 {[%clk 0:01:31]}  a4 {[%clk 0:00:59]} 22. Nd4 {[%clk 0:01:30]}  Bf6 {[%clk 0:00:57]} 23. Nxc6 {[%clk 0:01:25]}  Bxc6 {[%clk 0:00:58]} 24. h5 {[%clk 0:01:22]}  a3 {[%clk 0:00:52]} 25. hxg6 {[%clk 0:01:04]}  fxg6 {[%clk 0:00:53]} 26. Qd3 {[%clk 0:01:01]}  Kg7 {[%clk 0:00:51]} 27. Bh6+ {[%clk 0:01:00]}  Kf7 {[%clk 0:00:50]} 28. b3 {[%clk 0:00:57]}  Rh8 {[%clk 0:00:48]} 29. Rh3 {[%clk 0:00:41]}  Rae8 {[%clk 0:00:48]} 30. Bd2 {[%clk 0:00:31]}  Rxh3 {[%clk 0:00:43]} 31. gxh3 {[%clk 0:00:32]}  Re5 {[%clk 0:00:38]} 32. Bxb4 {[%clk 0:00:28]}  Rf5 {[%clk 0:00:38]} 33. Bxa3 {[%clk 0:00:23]}  d4 {[%clk 0:00:38]} 34. Qc4+ {[%clk 0:00:16]}  Bd5 {[%clk 0:00:39]} 35. Qc7+ {[%clk 0:00:17]}  Kg8 {[%clk 0:00:37]} 36. Qc8+ {[%clk 0:00:16]}  Kh7 {[%clk 0:00:36]} 37. Qd7+ {[%clk 0:00:17]}  Kh6 {[%clk 0:00:36]} 38. Bc1+ {[%clk 0:00:17]}  Bg5 {[%clk 0:00:31]} 39. Bxg5+ {[%clk 0:00:14]}  Kxg5 {[%clk 0:00:32]} 40. Qe7+ {[%clk 0:00:13]}  Kf4 {[%clk 0:00:32]} 41. Qh4+ {[%clk 0:00:13]}  Ke3 {[%clk 0:00:30]} 42. a4 {[%clk 0:00:10]}  Bxf3 {[%clk 0:00:29]} 43. Qh6+ {[%clk 0:00:07]}  Ke2 {[%clk 0:00:27]} 44. Qxg6 {[%clk 0:00:06]}  Be4 {[%clk 0:00:28]} 45. Qg4+ {[%clk 0:00:05]}  Ke3 {[%clk 0:00:26]} 46. Qg3+ {[%clk 0:00:05]}  Ke2 {[%clk 0:00:26]} 47. Qb8 {[%clk 0:00:05]}  d3 {[%clk 0:00:24]} 48. cxd3 {[%clk 0:00:05]}  Bxd3+ {[%clk 0:00:25]} 49. Kb2 {[%clk 0:00:06]}  Rf2 {[%clk 0:00:25]} 50. Kc3 {[%clk 0:00:06]}  Rf3 {[%clk 0:00:24]} 51. Qe5+ {[%clk 0:00:07]}  Be4+ {[%clk 0:00:24]} 52. Kd4 {[%clk 0:00:06]}  Rxb3 {[%clk 0:00:22]} 53. Qxe4+ {[%clk 0:00:05]}  Kd2 {[%clk 0:00:22]} 54. Qg2+ {[%clk 0:00:04]}  Ke1 {[%clk 0:00:22]} 55. Qg1+ {[%clk 0:00:04]}  Kd2 {[%clk 0:00:21]} 56. Qf2+ {[%clk 0:00:04]}  Kd1 {[%clk 0:00:21]} 57. Qf1+ {[%clk 0:00:04]}  Kd2 {[%clk 0:00:22]} 58. a5 {[%clk 0:00:03]}  Rb4+ {[%clk 0:00:21]} 59. Qc4 {[%clk 0:00:03]}  Rb2 {[%clk 0:00:20]} 60. Qc3+ {[%clk 0:00:03]}  Ke2 {[%clk 0:00:19]} 61. Qxb2+ {[%clk 0:00:04]}  Kf3 {[%clk 0:00:20]} 62. Qd2 {[%clk 0:00:04]}  Kg3 {[%clk 0:00:20]} 63. a6 {[%clk 0:00:04]}  Kh4 {[%clk 0:00:21]} 64. a7 {[%clk 0:00:05]}  Kh5 {[%clk 0:00:20]} 65. a8=Q {[%clk 0:00:06]}  Kg6 {[%clk 0:00:21]} 66. Qg8+ {[%clk 0:00:06]}  Kf5 {[%clk 0:00:22]} 67. Qf2# {[%clk 0:00:06]} 1-0


[Site "https://www.chess.com"]